bitfinex/quotes_BTCUSD_20251224
["timestamp","ask_amount","ask_price","bid_price","bid_amount"]
[1766597928581,0.01142204,87550.0,87542.0,0.01144]
[1766597928750,0.01142217,87549.0,87542.0,0.01144]
[1766597929501,0.01142204,87550.0,87542.0,0.01144]
[1766597930248,0.01142217,87549.0,87542.0,0.01144]
[1766597930452,0.06853239,87550.0,87542.0,0.01144]
[1766597930656,0.06853134,87552.0,87542.0,0.07997845]
[1766597930871,0.05710957,87551.0,87550.0,0.000549]
[1766597931207,0.05710957,87551.0,87542.0,0.01144]
[1766597931208,0.05710957,87551.0,87542.0,0.02286308]
[1766597931411,0.06853161,87551.0,87542.0,0.02286308]
[1766597931651,0.01142204,87550.0,87542.0,0.01144]
[1766597931850,0.06853161,87551.0,87542.0,0.01144]
[1766597932420,0.01142217,87549.0,87542.0,0.01144]
[1766597932854,0.01142269,87545.0,87542.0,0.01144]
[1766597933054,0.05711478,87543.0,87542.0,0.01144]
[1766597935353,0.05712,87536.0,87526.0,0.01142517]
[1766597935575,0.01142374,87537.0,87528.0,0.01142491]
[1766597935781,0.06854363,87537.0,87528.0,0.01142491]
[1766597936082,0.01142374,87537.0,87528.0,0.01142491]
[1766597936496,0.01142374,87537.0,87515.0,0.00011]
[1766597936497,0.01142622,87518.0,87515.0,0.00011]
[1766597936712,0.06855654,87519.0,87518.0,0.000549]
[1766597936883,0.01142595,87520.0,87516.0,0.01144]
[1766597937106,0.01142582,87521.0,87516.0,0.01144]
[1766597937529,0.06855428,87522.0,87516.0,0.01144]
[1766597937884,0.01142582,87521.0,87516.0,0.01144]
[1766597938678,0.06855672,87519.0,87516.0,0.01144]
[1766597939210,0.06855672,87519.0,87515.0,0.00021622]
[1766597939211,0.13167622,87518.0,87515.0,0.00021622]
[1766597939418,0.05713241,87516.0,87515.0,0.01165622]
[1766597940248,0.01142791,87505.0,87493.0,0.08453391]
[1766597940446,0.01142765,87507.0,87502.0,0.01144]
[1766597940682,0.01142765,87507.0,87505.0,0.000549]
[1766597940854,0.01142726,87510.0,87505.0,0.000549]
[1766597941054,0.01142739,87509.0,87502.0,0.01144]
[1766597941276,0.01142726,87510.0,87502.0,0.01144]
[1766597941498,0.01142713,87511.0,87502.0,0.01144]
[1766597941898,0.05713561,87513.0,87503.0,0.01142817]
[1766597941899,0.06856248,87513.0,87503.0,0.01142817]
[1766597942298,0.06855824,87517.0,87507.0,0.06856572]
[1766597942503,0.06855824,87517.0,87513.0,0.000549]
[1766597942504,0.01153247,87517.0,87513.0,0.000549]
[1766597942858,0.06855976,87515.0,87504.0,0.01142804]
[1766597943094,0.01142661,87515.0,87505.0,0.01142791]
[1766597943365,0.01142687,87513.0,87504.0,0.06856808]
[1766597943574,0.01142687,87513.0,87503.0,0.06856867]
[1766597943777,0.06856124,87513.0,87504.0,0.01142804]
[1766597943957,0.011427,87512.0,87503.0,0.06856867]
[1766597944188,0.05713642,87510.0,87502.0,0.01144]
[1766597944392,0.06856368,87510.0,87502.0,0.01144]
[1766597944566,0.01142726,87510.0,87502.0,0.01144]
[1766597944795,0.01142739,87509.0,87502.0,0.01144]
[1766597945158,0.01142752,87508.0,87502.0,0.01144]
[1766597945461,0.01142713,87511.0,87508.0,0.000549]
[1766597945638,0.17738632,87510.0,87508.0,0.000549]
[1766597945848,0.01142765,87507.0,87502.0,0.01144]
[1766597946055,0.06856437,87509.0,87502.0,0.01144]
[1766597946280,0.05713766,87508.0,87502.0,0.01144]
[1766597946448,0.01142713,87511.0,87502.0,0.01144]
[1766597946791,0.05713645,87510.0,87508.0,0.001099]
[1766597946991,0.01142765,87507.0,87502.0,0.01144]
[1766597947298,0.18881614,87507.0,87502.0,0.01144]
[1766597947498,0.01142791,87505.0,87502.0,0.01144]
[1766597947863,0.06856672,87506.0,87502.0,0.01144]
[1766597948447,0.01142778,87506.0,87502.0,0.01144]
[1766597948650,0.18881605,87507.0,87502.0,0.01144]
[1766597949133,0.18881313,87513.0,87502.0,0.01144]
[1766597949305,0.01142726,87510.0,87507.0,0.000549]
[1766597949511,0.01142726,87510.0,87502.0,0.01144]
[1766597949906,0.0685628,87511.0,87502.0,0.02286831]
[1766597950272,0.01142648,87516.0,87502.0,0.02286831]
[1766597950480,0.01142648,87516.0,87511.0,0.001099]
[1766597950481,0.06857442,87513.0,87511.0,0.001099]
[1766597950653,0.01142713,87511.0,87502.0,0.02286831]
[1766597951053,0.01142726,87510.0,87502.0,0.01144]
[1766597951381,0.12025,87504.0,87502.0,0.01144]
[1766597951584,0.13167804,87504.0,87501.0,0.00011]
[1766597952067,0.01142857,87500.0,87498.0,0.01144]
[1766597952217,0.06857189,87500.0,87494.0,0.01144]
[1766597952414,0.06857143,87500.0,87494.0,0.01144]
[1766597952622,0.18882143,87500.0,87494.0,0.01144]
[1766597952857,0.01142896,87497.0,87494.0,0.01144]
[1766597953053,0.01142922,87495.0,87491.0,0.00011]
[1766597953498,0.18882442,87497.0,87495.0,0.000549]
[1766597953499,0.12025,87497.0,87495.0,0.000549]
[1766597953676,0.12025,87497.0,87491.0,0.00011]
[1766597953888,0.13167896,87497.0,87491.0,0.00011]
[1766597954093,0.0114287,87499.0,87491.0,0.00011]
[1766597954292,0.06857324,87498.0,87491.0,0.00011]
[1766597954661,0.01142922,87495.0,87491.0,0.00011]
[1766597955048,0.01142935,87494.0,87491.0,0.00011]
[1766597955254,0.06857627,87494.0,87491.0,0.00011]
[1766597955540,0.01142935,87494.0,87490.0,0.01144]
[1766597955686,0.01142922,87495.0,87490.0,0.01144]
[1766597955891,0.18882709,87493.0,87490.0,0.01144]
[1766597956473,0.13167948,87493.0,87490.0,0.01144]
[1766597956717,0.18882722,87493.0,87490.0,0.01144]
[1766597957332,0.13167948,87493.0,87490.0,0.01144]
[1766597957709,0.18882701,87493.0,87490.0,0.01144]
[1766597957913,0.05714812,87492.0,87490.0,0.01144]
[1766597958122,0.18882701,87493.0,87490.0,0.01144]
[1766597958320,0.12025,87493.0,87490.0,0.01144]
[1766597958532,0.120141,87493.0,87490.0,0.01144]
[1766597961474,0.01142909,87496.0,87484.0,0.01143066]
[1766597961475,0.000549,87490.0,87484.0,0.01143066]
[1766597961673,0.120799,87490.0,87485.0,0.01144]
[1766597961877,0.05714783,87493.0,87480.0,0.01144]
[1766597961878,0.13168026,87487.0,87480.0,0.01144]
[1766597962081,0.1316804,87486.0,87480.0,0.01144]
[1766597962882,0.01143053,87485.0,87480.0,0.01144]
[1766597963162,0.01143066,87484.0,87480.0,0.01144]
[1766597963331,0.06858398,87484.0,87480.0,0.01144]
[1766597963784,0.18883398,87484.0,87480.0,0.01144]
[1766597963939,0.12025,87483.0,87480.0,0.01144]
[1766597964147,0.12025,87482.0,87480.0,0.01144]
[1766597964346,0.17740461,87482.0,87471.0,0.06859401]
[1766597964569,0.05715461,87482.0,87476.0,0.01144]
[1766597964781,0.05715461,87482.0,87471.0,0.06859401]
[1766597965105,0.12025,87476.0,87471.0,5.258e-05]
[1766597965307,0.12025,87475.0,87471.0,5.258e-05]
[1766597965510,0.12025,87473.0,87471.0,2.58e-06]
[1766597965719,0.12025,87472.0,87471.0,2.58e-06]
[1766597966423,0.17741114,87472.0,87471.0,2.58e-06]
[1766597967183,0.12001216,87472.0,87471.0,2.58e-06]
[1766597967365,0.06859036,87476.0,87471.0,2.58e-06]
[1766597967570,0.01143196,87474.0,87471.0,2.58e-06]
[1766597967996,0.13168196,87474.0,87471.0,2.58e-06]
[1766597968203,0.18884188,87474.0,87471.0,2.58e-06]
[1766597968990,0.12025,87474.0,87471.0,2.58e-06]
[1766597969217,0.13168196,87474.0,87471.0,2.58e-06]
[1766597969347,0.12025,87474.0,87471.0,2.58e-06]
[1766597969976,0.01143144,87478.0,87471.0,2.58e-06]
[1766597970753,0.13636131,87479.0,87471.0,2.58e-06]
[1766597971350,0.12493,87479.0,87472.0,0.01143222]
[1766597972173,0.18208683,87479.0,87471.0,2.58e-06]
[1766597972380,0.19351814,87479.0,87471.0,2.58e-06]
[1766597972586,0.01143144,87478.0,87471.0,2.58e-06]
[1766597972941,0.01143157,87477.0,87471.0,2.58e-06]
[1766597973242,0.12493,87473.0,87471.0,2.58e-06]
[1766597973573,0.12493,87472.0,87471.0,2.58e-06]
[1766597976764,0.01143131,87479.0,87471.0,2.58e-06]
[1766597976989,0.06858795,87479.0,87471.0,2.58e-06]
[1766597977281,0.0114317,87476.0,87471.0,2.58e-06]
[1766597977491,0.01143144,87478.0,87471.0,2.58e-06]
[1766597977630,0.05715811,87477.0,87471.0,2.58e-06]
[1766597977829,0.18708871,87478.0,87471.0,2.58e-06]
[1766597978248,0.12993144,87478.0,87471.0,2.58e-06]
[1766597979353,0.01143157,87477.0,87471.0,2.58e-06]
[1766597980074,0.18708886,87478.0,87471.0,2.58e-06]
[1766597981068,0.1185,87478.0,87471.0,2.58e-06]
[1766597982012,0.1185,87485.0,87477.0,0.01143157]
[1766597982237,0.1185,87491.0,87480.0,0.01143118]
[1766597982441,0.1185,87491.0,87481.0,0.05715508]
[1766597982442,0.01148,87487.0,87481.0,0.05715508]
[1766597982643,0.01148,87487.0,87481.0,0.01143105]
[1766597982883,0.01148,87487.0,87480.0,0.06858697]
[1766597983084,0.01148,87487.0,87481.0,0.01143105]
[1766597983205,0.01148,87487.0,87480.0,0.01143118]
[1766597983588,0.01148,87487.0,87479.0,0.01143131]
[1766597984214,0.01148,87487.0,87479.0,0.06858783]
[1766597984796,0.01148,87487.0,87479.0,0.01143131]
[1766597985394,0.12992974,87491.0,87477.0,0.06858829]
[1766597985395,0.1185,87497.0,87492.0,0.01142961]
[1766597985597,0.1185,87497.0,87485.0,0.01143053]
[1766597985598,0.000549,87492.0,87489.0,0.01143]
[1766597985922,0.01148,87497.0,87489.0,0.01143]
[1766597986147,0.01148,87497.0,87492.0,0.01142961]
[1766597986588,0.1185,87504.0,87499.0,0.0114287]
[1766597986815,0.01142674,87514.0,87500.0,0.06857085]
[1766597986816,0.01148,87503.0,87500.0,0.06857085]
[1766597986986,0.01148,87503.0,87500.0,0.01142857]
[1766597987437,0.01148,87503.0,87498.0,0.01142883]
[1766597987627,0.01148,87503.0,87492.0,0.01142961]
[1766597987832,0.01142844,87501.0,87492.0,0.01142961]
[1766597988131,0.01142844,87501.0,87488.0,0.01143013]
[1766597988132,0.000549,87492.0,87488.0,0.01143013]
[1766597988414,0.05714686,87494.0,87486.0,0.01148]
[1766597988643,0.01142961,87492.0,87486.0,0.01148]
[1766597988854,0.12992896,87497.0,87486.0,0.01148]
[1766597989048,0.01142909,87496.0,87487.0,0.01143026]
[1766597989260,0.01142922,87495.0,87486.0,0.08006229]
[1766597989384,0.01142922,87495.0,87486.0,0.0229104]
[1766597989579,0.06857461,87496.0,87487.0,0.01143026]
[1766597989785,0.01142909,87496.0,87486.0,0.08006237]
[1766597990208,0.01142909,87496.0,87486.0,0.06858237]
[1766597990418,0.000549,87486.0,87480.0,0.01143118]
[1766597990837,0.1185,87489.0,87480.0,0.06858708]
[1766597991036,0.12993,87489.0,87480.0,0.01143118]
[1766597991244,0.1185,87489.0,87480.0,0.06858677]
[1766597991476,0.1185,87489.0,87481.0,0.01143105]
[1766597991673,0.1185,87489.0,87480.0,0.01143118]
[1766597992710,0.12993,87489.0,87480.0,0.01143118]
[1766597993781,0.12993,87489.0,87479.0,0.06863628]
[1766597993782,0.000549,87480.0,87479.0,0.01148]
[1766597994231,0.1185,87486.0,87479.0,0.01148]
[1766597994621,0.1185,87486.0,87480.0,0.01143118]
[1766597994821,0.01142961,87492.0,87482.0,0.01143092]
[1766597995146,0.05714938,87490.0,87480.0,0.01143118]
[1766597995347,0.02290974,87491.0,87481.0,0.06858575]
[1766597995478,0.06858004,87489.0,87479.0,0.01148]
[1766597995687,0.01142987,87490.0,87480.0,0.01143118]
[1766597995688,0.06857939,87490.0,87480.0,0.01143118]
[1766597995871,0.01142987,87490.0,87489.0,0.00015313]
[1766597996233,0.01142987,87490.0,87480.0,0.06858702]
[1766597996589,0.01142987,87490.0,87481.0,0.01143105]
[1766597996909,0.1185,87489.0,87481.0,0.01143105]
[1766597997309,0.02290974,87491.0,87482.0,0.01143092]
[1766597997530,0.01143,87489.0,87480.0,0.01143118]
[1766597997672,0.08005903,87491.0,87482.0,0.01143092]
[1766597998284,0.02290974,87491.0,87482.0,0.01143092]
[1766597998488,0.01148,87491.0,87483.0,0.01143079]
[1766597998685,0.24000914,87497.0,87483.0,0.01143079]
[1766597998686,0.01142896,87497.0,87483.0,0.01143079]
[1766597998898,0.22857058,87501.0,87486.0,0.0114304]
[1766597998899,0.01148,87494.0,87486.0,0.0114304]
[1766597999102,0.01148,87494.0,87484.0,0.01143066]
[1766597999103,0.01148,87494.0,87485.0,0.24004102]
[1766597999345,0.01148,87494.0,87486.0,0.057152]
[1766597999545,0.01148,87494.0,87485.0,0.01143053]
[1766597999744,0.0685775,87493.0,87484.0,0.01148]
[1766597999944,0.01142961,87492.0,87484.0,0.01148]
[1766598000321,0.0685775,87493.0,87484.0,0.02291066]
[1766598000646,0.08005618,87494.0,87484.0,0.08006379]
[1766598000848,0.06857703,87493.0,87484.0,0.02291066]
[1766598001179,0.0685774,87493.0,87484.0,0.01148]
[1766598001369,0.01142974,87491.0,87484.0,0.010934]
[1766598001575,0.11598,87490.0,87484.0,0.010934]
[1766598001797,0.11598,87488.0,87484.0,0.010934]
[1766598001999,0.11598,87488.0,87480.0,0.01143118]
[1766598002175,0.12741013,87488.0,87479.0,0.0800673]
[1766598002383,0.11598,87488.0,87480.0,0.01143118]
[1766598002543,0.11598,87488.0,87481.0,0.01143105]
[1766598003060,0.11598,87488.0,87482.0,0.01143092]
[1766598003247,0.11598,87488.0,87482.0,0.06858542]
[1766598003442,0.11598,87488.0,87482.0,0.01143092]
[1766598003648,0.115431,87488.0,87482.0,0.06858551]
[1766598004103,0.115431,87488.0,87483.0,0.01143079]
[1766598004476,0.115431,87488.0,87482.0,0.06858551]
[1766598004642,0.115431,87488.0,87482.0,0.01143092]
[1766598005652,0.115431,87488.0,87483.0,0.01143079]
[1766598005836,0.01142948,87493.0,87484.0,0.01143066]
[1766598006829,0.11598,87497.0,87484.0,0.01143066]
[1766598007053,0.12740752,87508.0,87498.0,0.01142883]
[1766598007270,0.01148,87504.0,87499.0,0.05714303]
[1766598007478,0.01148,87504.0,87498.0,0.01142883]
[1766598007680,0.01148,87504.0,87499.0,0.0114287]
[1766598007851,0.01148,87504.0,87497.0,0.01142896]
[1766598008090,0.01148,87504.0,87496.0,0.06857449]
[1766598008307,0.01148,87504.0,87496.0,0.01142909]
[1766598008725,0.01148,87507.0,87502.0,0.05714155]
[1766598008976,0.01159,87511.0,87508.0,0.01142752]
[1766598009198,0.01159,87511.0,87507.0,0.01142765]
[1766598009406,0.00011,87511.0,87507.0,0.01142765]
[1766598009609,0.00011,87511.0,87504.0,0.06856813]
[1766598010586,0.00011,87511.0,87505.0,0.01142791]
[1766598011241,0.000549,87505.0,87502.0,0.01148]
[1766598011621,0.184545,87509.0,87502.0,0.01093]
[1766598011827,0.12740739,87509.0,87502.0,0.01093]
[1766598012020,0.11598,87509.0,87502.0,0.01093]
[1766598012528,0.01142752,87508.0,87502.0,0.01093]
[1766598012902,0.18454494,87509.0,87502.0,0.01093]
[1766598013106,0.18454494,87509.0,87502.0,0.02235831]
[1766598013107,0.11598,87509.0,87502.0,0.02235831]
[1766598013329,0.11598,87509.0,87502.0,0.01093]
[1766598017266,0.12740739,87509.0,87502.0,0.01093]
[1766598018002,0.01142791,87505.0,87502.0,0.01093]
[1766598018334,0.01142804,87504.0,87497.0,0.01144]
[1766598018492,0.11598,87503.0,87497.0,0.01144]
[1766598018676,0.11598,87503.0,87495.0,0.01142922]
[1766598018876,0.11598,87503.0,87495.0,0.02286922]
[1766598019083,0.11598,87503.0,87495.0,0.01144]
[1766598019084,0.12740817,87503.0,87495.0,0.01144]
[1766598019484,0.000549,87495.0,87487.0,0.01143026]
[1766598019685,0.18510496,87495.0,87487.0,0.00010609]
[1766598019886,0.116529,87495.0,87487.0,0.00010609]
[1766598020096,0.12740922,87495.0,87487.0,0.00010609]
[1766598020293,0.11598,87495.0,87487.0,0.01153635]
[1766598021316,0.12740922,87495.0,87487.0,0.00010609]
[1766598021931,0.11598,87495.0,87487.0,0.06868763]
[1766598022132,0.01144,87497.0,87488.0,0.01143013]
[1766598022295,0.01144,87497.0,87487.0,0.01153635]
[1766598022497,0.11598,87494.0,87487.0,0.00010609]
[1766598022772,0.05714907,87491.0,87487.0,0.00010609]
[1766598022923,0.18455881,87491.0,87487.0,0.00010609]
[1766598023119,0.11598,87491.0,87487.0,0.00010609]
[1766598023318,0.06857927,87490.0,87487.0,0.00010609]
[1766598023523,0.000106,87487.0,87479.0,0.06858782]
[1766598023701,0.01143013,87488.0,87481.0,0.01144]
[1766598023906,0.12741013,87488.0,87479.0,0.01143131]
[1766598024090,0.18456092,87488.0,87478.0,0.0685886]
[1766598024310,0.01143026,87487.0,87479.0,0.01143131]
[1766598024516,0.01143026,87487.0,87478.0,0.01143144]
[1766598025163,0.0114304,87486.0,87477.0,0.02287157]
[1766598025766,0.01143026,87487.0,87478.0,0.01143144]
[1766598026526,0.02287026,87487.0,87478.0,0.01143144]
[1766598027480,0.01144,87487.0,87478.0,0.06858856]
[1766598028305,0.01144,87487.0,87479.0,0.01143131]
[1766598028706,0.01144,87487.0,87478.0,0.06858856]
[1766598028908,0.01144,87487.0,87479.0,0.01143131]
[1766598029346,0.01144,87487.0,87480.0,0.01143118]
[1766598029866,0.01144,87487.0,87479.0,0.01143131]
[1766598030882,0.11498,87486.0,87477.0,0.08002942]
[1766598031015,0.1264104,87486.0,87477.0,0.08002942]
[1766598031425,0.05715317,87485.0,87477.0,0.01144]
[1766598031650,0.18356407,87484.0,87477.0,0.010891]
[1766598032075,0.01143079,87483.0,87477.0,0.010891]
[1766598032282,0.12641066,87484.0,87477.0,0.010891]
[1766598032938,0.11498,87484.0,87477.0,0.010891]
[1766598033351,0.01143079,87483.0,87477.0,0.010891]
[1766598033521,0.12641066,87484.0,87477.0,0.010891]
[1766598034140,0.11498,87484.0,87477.0,0.010891]
[1766598034532,0.12641066,87484.0,87477.0,0.010891]
[1766598035212,0.11498,87484.0,87477.0,0.010891]
[1766598035733,0.12641066,87484.0,87477.0,0.010891]
[1766598036157,0.11498,87484.0,87477.0,0.010891]
[1766598036838,0.12641066,87484.0,87477.0,0.010891]
[1766598037259,0.05715396,87483.0,87477.0,0.010891]
[1766598037438,0.01143092,87482.0,87477.0,0.010891]
[1766598038067,0.06858486,87483.0,87477.0,0.010891]
[1766598038304,0.11962,87476.0,87468.0,0.01143275]
[1766598038448,0.118521,87476.0,87469.0,0.0685956]
[1766598038647,0.118521,87476.0,87470.0,0.01143249]
[1766598038897,0.118521,87476.0,87471.0,0.01143236]
[1766598039509,0.118521,87476.0,87471.0,0.06859409]
[1766598039714,0.18821524,87482.0,87472.0,0.01143222]
[1766598039838,0.18821524,87482.0,87473.0,0.01143209]
[1766598040044,0.01144,87482.0,87474.0,0.01143196]
[1766598040244,0.01143105,87481.0,87471.0,0.01143236]
[1766598040459,0.01143118,87480.0,87472.0,0.01143222]
[1766598040670,0.11962,87482.0,87475.0,0.01143183]
[1766598040903,0.01148,87481.0,87473.0,0.01143209]
[1766598041107,0.01148,87481.0,87474.0,0.01143196]
[1766598041310,0.06858567,87482.0,87472.0,0.06859292]
[1766598041514,0.01148,87480.0,87471.0,0.06859381]
[1766598041717,0.01148,87480.0,87472.0,0.01143222]
[1766598041927,0.01143105,87481.0,87473.0,0.01143209]
[1766598042513,0.01148,87480.0,87472.0,0.01143222]
[1766598042900,0.01148,87479.0,87472.0,0.01143222]
[1766598043108,0.06858567,87482.0,87473.0,0.01143209]
[1766598043341,0.01148,87481.0,87473.0,0.06859239]
[1766598043649,0.11962,87483.0,87475.0,0.01143183]
[1766598043844,0.01148,87482.0,87474.0,0.01143196]
[1766598044065,0.11962,87483.0,87475.0,0.01143183]
[1766598044302,0.13105079,87483.0,87474.0,0.01143196]
[1766598044507,0.01148,87482.0,87474.0,0.01143196]
[1766598044704,0.13105079,87483.0,87474.0,0.06859177]
[1766598044909,0.01148,87481.0,87474.0,0.06859177]
[1766598045102,0.01148,87480.0,87475.0,0.01143183]
[1766598045306,0.01148,87480.0,87476.0,0.0114317]
[1766598045520,0.01148,87480.0,87474.0,0.06859177]
[1766598045727,0.11962,87483.0,87474.0,0.06859177]
[1766598045931,0.01148,87482.0,87475.0,0.06859085]
[1766598046140,0.11962,87483.0,87475.0,0.06859085]
[1766598046353,0.01148,87481.0,87475.0,0.06859085]
[1766598046583,0.01148,87480.0,87470.0,0.39275478]
[1766598046715,0.11962,87468.0,87458.0,0.01143405]
[1766598046918,0.05717095,87457.0,87449.0,0.03429436]
[1766598047120,0.01143484,87452.0,87449.0,7.703e-05]
[1766598047323,0.02291484,87452.0,87449.0,7.703e-05]
[1766598047551,0.05717503,87451.0,87449.0,7.703e-05]
[1766598047720,0.05717503,87451.0,87449.0,3e-08]
[1766598047926,0.14253484,87452.0,87449.0,3e-08]
[1766598048150,0.1311,87452.0,87449.0,3e-08]
[1766598048531,0.14253484,87452.0,87449.0,3e-08]
[1766598049551,0.19970961,87452.0,87449.0,3e-08]
[1766598049738,0.1311,87452.0,87449.0,3e-08]
[1766598052801,0.14253484,87452.0,87449.0,3e-08]
[1766598053201,0.1311,87452.0,87449.0,3e-08]
[1766598053410,0.14253484,87452.0,87449.0,3e-08]
[1766598053594,0.1311,87452.0,87449.0,3e-08]
[1766598057073,0.05717496,87451.0,87449.0,3e-08]
[1766598057411,0.19970963,87452.0,87449.0,3e-08]
[1766598057628,0.14253484,87452.0,87449.0,3e-08]
[1766598057828,0.1311,87452.0,87449.0,3e-08]
[1766598058419,0.19970943,87452.0,87449.0,3e-08]
[1766598059287,0.14253484,87452.0,87449.0,3e-08]
[1766598059510,0.19970923,87452.0,87449.0,3e-08]
[1766598059978,0.0114351,87450.0,87447.0,3e-08]
[1766598060215,0.17691177,87446.0,87445.0,6.5e-07]
[1766598060434,0.18849792,87446.0,87445.0,6.5e-07]
[1766598060859,0.13131978,87446.0,87445.0,6.5e-07]
[1766598061035,0.18849792,87446.0,87445.0,6.5e-07]
[1766598062984,0.18849792,87446.0,87437.0,0.0004]
[1766598062985,0.11984,87441.0,87437.0,0.0004]
[1766598063516,0.05718144,87441.0,87437.0,0.0004]
[1766598063669,0.13127641,87440.0,87436.0,0.0004]
[1766598063994,0.119363,87440.0,87436.0,0.0004]
[1766598064447,0.13079941,87440.0,87436.0,0.0004]
[1766598064652,0.119363,87440.0,87436.0,0.0004]
[1766598065251,0.13079941,87440.0,87436.0,0.0004]
[1766598065451,0.18798157,87440.0,87436.0,0.0004]
[1766598065588,0.13079941,87440.0,87436.0,0.0004]
[1766598065797,0.01143654,87439.0,87436.0,0.0004]
[1766598066223,0.05718357,87438.0,87436.0,0.0004]
[1766598066417,0.119363,87440.0,87436.0,0.0004]
[1766598066650,0.13079941,87440.0,87436.0,0.0004]
[1766598066856,0.13127654,87439.0,87436.0,0.0004]
[1766598067080,0.18845941,87439.0,87436.0,0.5004]
[1766598068606,0.10367541,87439.0,87437.0,0.00025064]
[1766598070496,0.00010615,87446.0,87437.0,0.00025064]
[1766598070704,0.00010615,87446.0,87436.0,0.51183693]
[1766598070705,0.05718402,87437.0,87436.0,0.5004]
[1766598070964,0.01143785,87429.0,87415.0,0.01143968]
[1766598071156,0.13127824,87426.0,87416.0,0.01143955]
[1766598071359,0.11984,87426.0,87417.0,0.06863648]
[1766598071563,0.11984,87426.0,87418.0,0.01183929]
[1766598071711,0.11984,87426.0,87419.0,0.01143916]
[1766598072115,0.11984,87426.0,87418.0,0.01183929]
[1766598072331,0.11984,87426.0,87418.0,0.06903573]
[1766598072697,0.11984,87426.0,87418.0,0.01183929]
[1766598073110,0.11984,87426.0,87418.0,0.06903559]
[1766598073349,0.13127824,87426.0,87418.0,0.0004]
[1766598073549,0.000149,87418.0,87413.0,0.05719934]
[1766598073756,0.02291798,87428.0,87412.0,0.01184007]
[1766598073757,0.00055,87413.0,87412.0,0.0004]
[1766598074047,0.00055,87413.0,87403.0,0.00011]
[1766598074048,0.01144046,87409.0,87403.0,0.00011]
[1766598074427,0.01144086,87406.0,87403.0,0.00011]
[1766598074667,0.01144086,87406.0,87392.0,0.0004]
[1766598074668,0.11984,87402.0,87392.0,0.0004]
[1766598074868,0.01108,87401.0,87398.0,0.05760949]
[1766598075075,0.01148,87400.0,87398.0,0.0004]
[1766598075275,0.13132,87400.0,87399.0,0.000251]
[1766598076799,0.0114402,87411.0,87399.0,0.000251]
[1766598076800,0.11984,87410.0,87399.0,0.000251]
[1766598077028,0.01148,87409.0,87399.0,0.000251]
[1766598077302,0.01144112,87404.0,87399.0,0.000251]
[1766598077472,0.11984,87407.0,87399.0,0.000251]
[1766598077473,0.01148,87403.0,87399.0,0.000251]
[1766598077875,0.13132,87403.0,87399.0,0.000251]
[1766598078217,0.13132,87403.0,87402.0,0.00109652]
[1766598078593,0.01148,87403.0,87402.0,0.00054752]
[1766598079829,0.010931,87403.0,87402.0,0.00054752]
[1766598081203,0.010931,87403.0,87392.0,0.0004]
[1766598081403,0.11984,87402.0,87392.0,0.01184269]
[1766598081678,0.11984,87402.0,87395.0,0.0114423]
[1766598081933,0.010931,87403.0,87398.0,0.0114419]
[1766598082110,0.010931,87403.0,87397.0,0.06865208]
[1766598082312,0.1312806,87408.0,87399.0,0.01144177]
[1766598082522,0.11984,87408.0,87400.0,0.01144164]
[1766598082723,0.01148,87407.0,87400.0,0.06864973]
[1766598083004,0.01144151,87401.0,87392.0,0.0004]
[1766598083223,0.01144151,87401.0,87342.0,1.14492144]
[1766598083224,0.11984,87388.0,87372.0,0.01144531]
[1766598083406,0.11984,87380.0,87372.0,8.516e-05]
[1766598083606,0.05722591,87373.0,87372.0,1.6e-07]
[1766598083815,0.01092483,87371.0,87361.0,0.0004]
[1766598083954,0.01144531,87372.0,87362.0,0.01144662]
[1766598084316,0.01148,87374.0,87364.0,0.05723123]
[1766598084511,0.01144439,87379.0,87364.0,0.01144636]
[1766598084751,0.01144518,87373.0,87361.0,0.01220128]
[1766598084975,0.01144492,87375.0,87361.0,0.01220128]
[1766598084976,0.01144492,87375.0,87364.0,0.06867792]
[1766598085189,0.01144518,87373.0,87362.0,0.06867965]
[1766598085389,0.00055,87362.0,87361.0,4.53e-06]
[1766598085692,0.01148,87362.0,87361.0,4.53e-06]
[1766598086681,0.11984,87377.0,87365.0,0.01144623]
[1766598086857,0.01148,87376.0,87367.0,0.39275478]
[1766598087056,0.01148,87376.0,87367.0,0.01144596]
[1766598087255,0.01144492,87375.0,87365.0,0.06867715]
[1766598087513,0.01144518,87373.0,87361.0,4.53e-06]
[1766598087658,0.01144557,87370.0,87361.0,4.53e-06]
[1766598087860,0.01148,87376.0,87365.0,0.01144623]
[1766598088064,0.04576,87385.0,87377.0,0.05722283]
[1766598088300,0.0686594,87388.0,87382.0,0.011444]
[1766598088301,0.13317,87388.0,87382.0,0.011444]
[1766598088446,0.13317,87388.0,87381.0,0.05722045]
[1766598088447,0.13317,87388.0,87381.0,0.06866461]
[1766598088708,0.01148,87387.0,87382.0,0.011444]
[1766598088890,0.01148,87387.0,87380.0,0.01144426]
[1766598089094,0.01144348,87386.0,87375.0,0.01144492]
[1766598089295,0.01144348,87386.0,87360.0,0.22893601]
[1766598089296,0.13317,87383.0,87369.0,0.22891414]
[1766598089495,0.13317,87377.0,87368.0,0.01144583]
[1766598089770,0.01148,87376.0,87370.0,0.01144557]
[1766598089951,0.13317,87377.0,87370.0,0.01144557]
[1766598089952,0.01148,87375.0,87372.0,0.01144531]
[1766598090149,0.01148,87375.0,87368.0,0.01144583]
[1766598090350,0.13317,87376.0,87366.0,0.0114461]
[1766598090557,0.01148,87375.0,87370.0,0.01144557]
[1766598091389,0.01148,87375.0,87372.0,0.01144531]
[1766598091540,0.01148,87374.0,87372.0,0.01144531]
[1766598091945,0.14461374,87384.0,87373.0,0.01144518]
[1766598092148,0.0776983,87379.0,87373.0,0.01144518]
[1766598092366,0.0776983,87379.0,87374.0,0.01144505]
[1766598092575,0.04576,87389.0,87383.0,0.05721903]
[1766598092805,0.13317,87391.0,87383.0,0.01144387]
[1766598093005,0.13317,87398.0,87392.0,0.05721347]
[1766598093204,0.13317,87398.0,87391.0,0.01144282]
[1766598093205,0.01148,87397.0,87393.0,0.01144256]
[1766598093408,0.01148,87397.0,87393.0,0.06865511]
[1766598093608,0.13317,87398.0,87392.0,0.06865594]
[1766598093935,0.01144177,87399.0,87387.0,0.01144334]
[1766598094137,0.01148,87397.0,87389.0,0.01144308]
[1766598094473,0.01148,87397.0,87383.0,0.00011]
[1766598094674,0.01148,87397.0,87361.0,0.03434634]
[1766598094675,0.13317,87385.0,87373.0,0.01144518]
[1766598094892,0.06866563,87380.0,87369.0,0.06867362]
[1766598095096,0.14461426,87380.0,87368.0,0.02292583]
[1766598095272,0.01144452,87378.0,87368.0,0.02292583]